fUST/lending_fUST_20240613
["ID","MTS","AMOUNT","RATE_DAILY","PERIOD"]
[329300339,1718225440426,-500.0,0.00016438,2]
[329300340,1718225440453,-707.68,0.00016438,2]
[329300341,1718225440478,-500.0,0.00016438,2]
[329300342,1718225440498,-500.0,0.00016438,2]
[329300343,1718225440528,-500.0,0.00016438,2]
[329300344,1718225440567,-545.24,0.00016438,2]
[329300345,1718225440586,-500.0,0.00016438,2]
[329300346,1718225440601,-500.0,0.00016438,2]
[329300347,1718225440641,-735.34,0.00016438,2]
[329300348,1718225440658,-500.0,0.00016438,2]
[329300349,1718225440699,-345.06273923,0.00016438,2]
[329300350,1718225440712,-500.0,0.00016438,2]
[329300351,1718225440724,-500.0,0.00016438,2]
[329300352,1718225440744,-500.0,0.00016438,2]
[329300353,1718225440761,-500.0,0.00016438,2]
[329300354,1718225440774,-500.0,0.00016438,2]
[329300355,1718225440786,-500.0,0.00016438,2]
[329300356,1718225440802,-500.0,0.00016438,2]
[329300357,1718225440815,-500.0,0.00016438,2]
[329300358,1718225440828,-500.0,0.00016438,2]
[329300359,1718225440844,-500.0,0.00016438,2]
[329300360,1718225440875,-500.0,0.00016438,2]
[329300361,1718225440889,-505.01,0.00016438,2]
[329300362,1718225440900,-500.0,0.00016438,2]
[329300363,1718225440912,-500.0,0.00016438,2]
[329300364,1718225440924,-2955.53,0.00016438,2]
[329300365,1718225440936,-510.38,0.00016438,2]
[329300366,1718225440947,-500.0,0.00016438,2]
[329300367,1718225440959,-763.47,0.00016438,2]
[329300368,1718225440971,-500.0,0.00016438,2]
[329300369,1718225440981,-1100.27,0.00016438,2]
[329300370,1718225440994,-500.0,0.00016438,2]
[329300371,1718225441005,-500.0,0.00016438,2]
[329300372,1718225441015,-500.0,0.00016438,2]
[329300373,1718225441028,-500.0,0.00016438,2]
[329300374,1718225441039,-500.0,0.00016438,2]
[329300375,1718225441051,-500.0,0.00016438,2]
[329300376,1718225441066,-500.0,0.00016438,2]
[329300377,1718225441084,-5885.54,0.00016438,2]
[329300378,1718225441096,-500.0,0.00016438,2]
[329300379,1718225441109,-500.0,0.00016438,2]
[329300380,1718225441123,-500.0,0.00016438,2]
[329300381,1718225441136,-500.0,0.00016438,2]
[329300382,1718225441148,-500.0,0.00016438,2]
[329300383,1718225441165,-500.0,0.00016438,2]
[329300384,1718225441176,-500.0,0.00016438,2]
[329300385,1718225441186,-500.0,0.00016438,2]
[329300386,1718225441197,-500.0,0.00016438,2]
[329300387,1718225441208,-333.0922486,0.00016438,2]
[329300388,1718225441218,-500.0,0.00016438,2]
[329300389,1718225441228,-3599.52,0.00016438,2]
[329300390,1718225441238,-477.22471711,0.00016438,2]
[329300391,1718225441249,-500.0,0.00016438,2]
[329300392,1718225441259,-500.0,0.00016438,2]
[329300393,1718225441287,-1362.99,0.00016438,2]
[329300394,1718225441300,-531.35,0.00016438,2]
[329300395,1718225441313,-500.0,0.00016438,2]
[329300396,1718225441324,-500.0,0.00016438,2]
[329300397,1718225441341,-500.0,0.00016438,2]
[329300398,1718225441352,-500.0,0.00016438,2]
[329300399,1718225441363,-1825.72,0.00016438,2]
[329300400,1718225441374,-500.0,0.00016438,2]
[329300401,1718225441387,-500.0,0.00016438,2]
[329300402,1718225441397,-635.02,0.00016438,2]
[329300403,1718225441412,-500.0,0.00016438,2]
[329300404,1718225441424,-464.43241486,0.00016438,2]
[329300406,1718225441435,-4032.34,0.00016438,2]
[329300408,1718225441445,-500.0,0.00016438,2]
[329300420,1718225441605,-500.0,0.00016438,2]
[329300421,1718225441617,-500.0,0.00016438,2]
[329300422,1718225441629,-500.0,0.00016438,2]
[329300423,1718225441640,-500.0,0.00016438,2]
[329300424,1718225441650,-500.0,0.00016438,2]
[329300425,1718225441661,-500.0,0.00016438,2]
[329300426,1718225441675,-500.0,0.00016438,2]
[329300427,1718225441701,-500.0,0.00016438,2]
[329300428,1718225441713,-572.08,0.00016438,2]
[329300429,1718225441724,-500.0,0.00016438,2]
[329300430,1718225441736,-793.22,0.00016438,2]
[329300431,1718225441748,-500.0,0.00016438,2]
[329300432,1718225441760,-592.49,0.00016438,2]
[329300433,1718225441772,-1316.11,0.00016438,2]
[329300434,1718225441783,-607.46,0.00016438,2]
[329300435,1718225441796,-500.0,0.00016438,2]
[329300436,1718225441808,-500.0,0.00016438,2]
[329300437,1718225441824,-1093.22,0.00016438,2]
[329300438,1718225441836,-500.0,0.00016438,2]
[329300439,1718225441852,-2770.43,0.00016438,2]
[329300440,1718225441865,-500.0,0.00016438,2]
[329300441,1718225441878,-500.0,0.00016438,2]
[329300442,1718225441889,-500.0,0.00016438,2]
[329300443,1718225441900,-500.0,0.00016438,2]
[329300444,1718225441920,-500.0,0.00016438,2]
[329300445,1718225441932,-500.0,0.00016438,2]
[329300446,1718225441945,-500.0,0.00016438,2]
[329300447,1718225441956,-500.0,0.00016438,2]
[329300448,1718225441966,-845.76,0.00016438,2]
[329300449,1718225441977,-500.0,0.00016438,2]
[329300450,1718225441991,-549.6,0.00016438,2]
[329300451,1718225442002,-500.0,0.00016438,2]
[329300452,1718225442013,-185.85022719,0.00016612,2]
[329300453,1718225442024,-500.0,0.00016712,2]
[329300454,1718225442035,-500.0,0.00016712,2]
[329300455,1718225442047,-500.0,0.00016712,2]
[329300456,1718225442062,-500.0,0.00016712,2]
[329300457,1718225442078,-512.93,0.00016712,2]
[329300458,1718225442089,-500.0,0.00016712,2]
[329300459,1718225442100,-500.0,0.00016712,2]
[329300460,1718225442111,-500.0,0.00016712,2]
[329300461,1718225442122,-500.0,0.00016712,2]
[329300462,1718225442136,-500.0,0.00016712,2]
[329300463,1718225442146,-500.0,0.00016712,2]
[329300464,1718225442158,-500.0,0.00016712,2]
[329300465,1718225442170,-500.0,0.00016712,2]
[329300466,1718225442181,-631.37772711,0.00016712,2]
[329300467,1718225442192,-585.20178066,0.00016712,2]
[329300468,1718225442206,-561.53,0.00016712,2]
[329300469,1718225442218,-707.68,0.00016712,2]
[329300470,1718225442229,-500.0,0.00016712,2]
[329300471,1718225442240,-500.0,0.00016712,2]
[329300472,1718225442255,-545.24,0.00016712,2]
[329300473,1718225442267,-500.0,0.00016712,2]
[329300474,1718225442278,-735.34,0.00016712,2]
[329300475,1718225442288,-500.0,0.00016712,2]
[329300476,1718225442299,-500.0,0.00016712,2]
[329300477,1718225442309,-363.75541119,0.00016712,2]
[329300478,1718225442320,-500.0,0.00016712,2]
[329300479,1718225442333,-500.0,0.00016712,2]
[329300480,1718225442353,-500.0,0.00016712,2]
[329300481,1718225442374,-500.0,0.00016712,2]
[329300482,1718225442395,-505.01,0.00016712,2]
[329300483,1718225442406,-500.0,0.00016712,2]
[329300484,1718225442421,-2955.53,0.00016712,2]
[329300485,1718225442433,-510.38,0.00016712,2]
[329300486,1718225442445,-763.47,0.00016712,2]
[329300487,1718225442469,-500.0,0.00016712,2]
[329300488,1718225442480,-1100.27,0.00016712,2]
[329300489,1718225442491,-500.0,0.00016712,2]
[329300490,1718225442502,-500.0,0.00016712,2]
[329300491,1718225442514,-500.0,0.00016712,2]
[329300492,1718225442524,-500.0,0.00016712,2]
[329300493,1718225442535,-326.91482797,0.00016712,2]
[329300494,1718225442546,-5885.54,0.00016712,2]
[329300495,1718225442556,-579.61827582,0.00016712,2]
[329300496,1718225442567,-500.0,0.00016712,2]
[329300497,1718225442578,-500.0,0.00016712,2]
[329300498,1718225442588,-500.0,0.00016712,2]
[329300499,1718225442598,-500.0,0.00016712,2]
[329300500,1718225442609,-500.0,0.00016712,2]
[329300501,1718225442620,-550.28652042,0.00016712,2]
[329300502,1718225442632,-500.0,0.00016712,2]
[329300503,1718225442642,-3599.52,0.00016712,2]
[329300504,1718225442654,-500.0,0.00016712,2]
[329300505,1718225442665,-500.0,0.00016712,2]
[329300506,1718225442692,-1362.99,0.00016712,2]
[329300507,1718225442703,-531.35,0.00016712,2]
[329300509,1718225442714,-500.0,0.00016712,2]
[329300510,1718225442725,-1825.72,0.00016712,2]
[329300511,1718225442739,-500.0,0.00016712,2]
[329300512,1718225442750,-635.02,0.00016712,2]
[329300513,1718225442761,-500.0,0.00016712,2]
[329300514,1718225442771,-4032.34,0.00016712,2]
[329300515,1718225442782,-500.0,0.00016712,2]
[329300516,1718225442793,-500.0,0.00016712,2]
[329300517,1718225442803,-500.0,0.00016712,2]
[329300518,1718225442812,-500.0,0.00016712,2]
[329300519,1718225442823,-500.0,0.00016712,2]
[329300520,1718225442834,-382.47905643,0.00016712,2]
[329300521,1718225442857,-500.0,0.00016712,2]
[329300522,1718225442868,-572.08,0.00016712,2]
[329300523,1718225442880,-500.0,0.00016712,2]
[329300524,1718225442890,-793.22,0.00016712,2]
[329300525,1718225442901,-500.0,0.00016712,2]
[329300526,1718225442912,-592.49,0.00016712,2]
[329300527,1718225442961,-1316.11,0.00016712,2]
[329300528,1718225442988,-607.46,0.00016712,2]
[329300529,1718225443004,-500.0,0.00016712,2]
[329300530,1718225443015,-1093.22,0.00016712,2]
[329300531,1718225443027,-500.0,0.00016712,2]
[329300532,1718225443037,-2770.43,0.00016712,2]
[329300533,1718225443048,-500.0,0.00016712,2]
[329300534,1718225443063,-500.0,0.00016712,2]
[329300535,1718225443075,-500.0,0.00016712,2]
[329300536,1718225443088,-500.0,0.00016712,2]
[329300537,1718225443101,-845.76,0.00016712,2]
[329300538,1718225443112,-500.0,0.00016712,2]
[329300539,1718225443131,-549.6,0.00016712,2]
[329300540,1718225443145,-500.0,0.00016712,2]
[329300544,1718225443166,-14724.34945733,0.00016986,15]
[329300545,1718225443182,-356.86,0.00016986,2]
[329300546,1718225443201,-257.07,0.00016986,2]
[329300547,1718225443215,-500.0,0.00016986,2]
[329300548,1718225443229,-512.93,0.00016986,2]
[329300549,1718225443241,-500.0,0.00016986,2]
[329300550,1718225443256,-500.0,0.00016986,2]
[329300551,1718225443268,-572.26,0.00016986,2]
[329300552,1718225443283,-500.0,0.00016986,2]
[329300553,1718225443296,-500.0,0.00016986,2]
[329300554,1718225443307,-500.0,0.00016986,2]
[329300555,1718225443319,-500.0,0.00016986,2]
[329300556,1718225443331,-500.0,0.00016986,2]
[329300557,1718225443348,-561.53,0.00016986,2]
[329300558,1718225443361,-707.68,0.00016986,2]
[329300559,1718225443374,-500.0,0.00016986,2]
[329300560,1718225443388,-545.24,0.00016986,2]
[329300561,1718225443399,-500.0,0.00016986,2]
[329300562,1718225443410,-735.34,0.00016986,2]
[329300563,1718225443424,-594.93,0.00016986,2]
[329300564,1718225443436,-500.0,0.00016986,2]
[329300565,1718225443449,-500.0,0.00016986,2]
[329300566,1718225443459,-500.0,0.00016986,2]
[329300567,1718225443470,-566.03,0.00016986,2]
[329300568,1718225443480,-392.14,0.00016986,2]
[329300569,1718225443491,-505.01,0.00016986,2]
[329300570,1718225443501,-500.0,0.00016986,2]
[329300571,1718225443512,-2955.53,0.00016986,2]
[329300572,1718225443522,-510.38,0.00016986,2]
[329300573,1718225443534,-763.47,0.00016986,2]
[329300574,1718225443545,-500.0,0.00016986,2]
[329300575,1718225443557,-1100.27,0.00016986,2]
[329300576,1718225443568,-500.0,0.00016986,2]
[329300577,1718225443578,-500.0,0.00016986,2]
[329300578,1718225443589,-500.0,0.00016986,2]
[329300579,1718225443600,-500.0,0.00016986,2]
[329300580,1718225443612,-5885.54,0.00016986,2]
[329300581,1718225443622,-500.0,0.00016986,2]
[329300582,1718225443635,-256.46026951,0.00016986,2]
[329300583,1718225443645,-500.0,0.00016986,2]
[329300584,1718225443668,-3599.52,0.00016986,2]
[329300585,1718225443695,-500.0,0.00016986,2]
[329300586,1718225443705,-1362.99,0.00016986,2]
[329300587,1718225443716,-531.35,0.00016986,2]
[329300588,1718225443728,-500.0,0.00016986,2]
[329300589,1718225443738,-1825.72,0.00016986,2]
[329300590,1718225443749,-500.0,0.00016986,2]
[329300591,1718225443759,-635.02,0.00016986,2]
[329300592,1718225443770,-500.0,0.00016986,2]
[329300593,1718225443781,-4032.34,0.00016986,2]
[329300594,1718225443791,-500.0,0.00016986,2]
[329300595,1718225443802,-500.0,0.00016986,2]
[329300596,1718225443812,-500.0,0.00016986,2]
[329300597,1718225443823,-500.0,0.00016986,2]
[329300598,1718225443833,-572.08,0.00016986,2]
[329300599,1718225443844,-500.0,0.00016986,2]
[329300600,1718225443855,-793.22,0.00016986,2]
[329300601,1718225443866,-500.0,0.00016986,2]
[329300602,1718225443878,-592.49,0.00016986,2]
[329300603,1718225443891,-1316.11,0.00016986,2]
[329300604,1718225443904,-607.46,0.00016986,2]
[329300605,1718225443915,-500.0,0.00016986,2]
[329300606,1718225443925,-1093.22,0.00016986,2]
[329300607,1718225443936,-500.0,0.00016986,2]
[329300608,1718225443947,-2770.43,0.00016986,2]
[329300609,1718225443958,-500.0,0.00016986,2]
[329300610,1718225443969,-500.0,0.00016986,2]
[329300611,1718225443980,-500.0,0.00016986,2]
[329300612,1718225443991,-231.66,0.00016986,2]
[329300613,1718225444002,-845.76,0.00016986,2]
[329300614,1718225444013,-500.0,0.00016986,2]
[329300615,1718225444025,-549.6,0.00016986,2]
[329300616,1718225444036,-500.0,0.00016986,2]
[329300617,1718225444047,-3452.50305617,0.00017,2]
[329300618,1718225444057,-185.85022718,0.00017041,2]
[329300619,1718225444068,-512.93,0.0001726,2]
[329300620,1718225444079,-614.55256211,0.0001726,2]
[329300621,1718225444090,-500.0,0.0001726,2]
[329300622,1718225444101,-500.0,0.0001726,2]
[329300623,1718225444112,-500.0,0.0001726,2]
[329300624,1718225444124,-561.53,0.0001726,2]
[329300625,1718225444137,-707.68,0.0001726,2]
[329300626,1718225444148,-500.0,0.0001726,2]
[329300627,1718225444159,-545.24,0.0001726,2]
[329300628,1718225444170,-500.0,0.0001726,2]
[329300629,1718225444181,-735.34,0.0001726,2]
[329300630,1718225444191,-500.0,0.0001726,2]
[329300631,1718225444202,-500.0,0.0001726,2]
[329300632,1718225444213,-505.01,0.0001726,2]
[329300633,1718225444225,-500.0,0.0001726,2]
[329300634,1718225444235,-2955.53,0.0001726,2]
[329300635,1718225444247,-510.38,0.0001726,2]
[329300636,1718225444260,-763.47,0.0001726,2]
[329300637,1718225444271,-500.0,0.0001726,2]
[329300638,1718225444282,-1100.27,0.0001726,2]
[329300639,1718225444293,-500.0,0.0001726,2]
[329300640,1718225444304,-500.0,0.0001726,2]
[329300641,1718225444315,-500.0,0.0001726,2]
[329300642,1718225444326,-5885.54,0.0001726,2]
[329300643,1718225444338,-500.0,0.0001726,2]
[329300644,1718225444352,-500.0,0.0001726,2]
[329300645,1718225444362,-3599.52,0.0001726,2]
[329300646,1718225444374,-500.0,0.0001726,2]
[329300647,1718225444388,-531.35,0.0001726,2]
[329300648,1718225444398,-1362.99,0.0001726,2]
[329300649,1718225444409,-500.0,0.0001726,2]
[329300650,1718225444423,-1825.72,0.0001726,2]
[329300651,1718225444434,-500.0,0.0001726,2]
[329300652,1718225444445,-635.02,0.0001726,2]
[329300653,1718225444455,-500.0,0.0001726,2]
[329300654,1718225444466,-4032.34,0.0001726,2]
[329300655,1718225444477,-500.0,0.0001726,2]
[329300656,1718225444488,-500.0,0.0001726,2]
[329300657,1718225444498,-572.08,0.0001726,2]
[329300658,1718225444509,-500.0,0.0001726,2]
[329300659,1718225444520,-793.22,0.0001726,2]
[329300660,1718225444531,-500.0,0.0001726,2]
[329300661,1718225444542,-592.49,0.0001726,2]
[329300662,1718225444554,-1316.11,0.0001726,2]
[329300663,1718225444566,-607.46,0.0001726,2]
[329300664,1718225444579,-500.0,0.0001726,2]
[329300665,1718225444590,-1093.22,0.0001726,2]
[329300666,1718225444607,-500.0,0.0001726,2]
[329300667,1718225444618,-2770.43,0.0001726,2]
[329300668,1718225444630,-498.3936572,0.0001726,2]
[329300669,1718225444646,-500.0,0.0001726,2]
[329300670,1718225444658,-845.76,0.0001726,2]
[329300671,1718225444679,-500.0,0.0001726,2]
[329300672,1718225444706,-549.6,0.0001726,2]
[329300673,1718225444719,-559.96,0.0001726,2]
[329300674,1718225444734,-185.85022718,0.00017471,2]
[329300675,1718225444746,-1555.18086671,0.00017531,2]
[329300676,1718225444761,-512.93,0.00017534,2]
[329300677,1718225444771,-500.0,0.00017534,2]
[329300678,1718225444783,-500.0,0.00017534,2]
[329300679,1718225444794,-500.0,0.00017534,2]
[329300680,1718225444805,-561.53,0.00017534,2]
[329300681,1718225444818,-707.68,0.00017534,2]
[329300682,1718225444832,-545.24,0.00017534,2]
[329300683,1718225444844,-500.0,0.00017534,2]
[329300684,1718225444854,-735.34,0.00017534,2]
[329300685,1718225444865,-259.71028773,0.00017534,2]
[329300686,1718225444876,-500.0,0.00017534,2]
[329300687,1718225444893,-505.01,0.00017534,2]
[329300688,1718225444905,-500.0,0.00017534,2]
[329300689,1718225444916,-2955.53,0.00017534,2]
[329300690,1718225444937,-510.38,0.00017534,2]
[329300691,1718225444949,-763.47,0.00017534,2]
[329300692,1718225444963,-500.0,0.00017534,2]
[329300693,1718225444985,-1100.27,0.00017534,2]
[329300694,1718225444997,-500.0,0.00017534,2]
[329300695,1718225445014,-341.9,0.00017534,2]
[329300696,1718225445026,-500.0,0.00017534,2]
[329300697,1718225445041,-5885.54,0.00017534,2]
[329300698,1718225445055,-500.0,0.00017534,2]
[329300699,1718225445074,-500.0,0.00017534,2]
[329300700,1718225445086,-3599.52,0.00017534,2]
[329300701,1718225445100,-328.51320295,0.00017534,2]
[329300702,1718225445112,-531.35,0.00017534,2]
[329300703,1718225445126,-1362.99,0.00017534,2]
[329300704,1718225445143,-500.0,0.00017534,2]
[329300705,1718225445158,-1825.72,0.00017534,2]
[329300706,1718225445170,-500.0,0.00017534,2]
[329300707,1718225445188,-635.02,0.00017534,2]
[329300708,1718225445201,-500.0,0.00017534,2]
[329300709,1718225445223,-4032.34,0.00017534,2]
[329300710,1718225445237,-500.0,0.00017534,2]
[329300711,1718225445260,-500.0,0.00017534,2]
[329300712,1718225445291,-572.08,0.00017534,2]
[329300713,1718225445302,-500.0,0.00017534,2]
[329300714,1718225445313,-793.22,0.00017534,2]
[329300715,1718225445325,-500.0,0.00017534,2]
[329300716,1718225445339,-592.49,0.00017534,2]
[329300717,1718225445357,-1316.11,0.00017534,2]
[329300718,1718225445369,-607.46,0.00017534,2]
[329300719,1718225445388,-500.0,0.00017534,2]
[329300720,1718225445401,-1093.22,0.00017534,2]
[329300721,1718225445416,-601.47295611,0.00017534,2]
[329300722,1718225445427,-2770.43,0.00017534,2]
[329300723,1718225445438,-500.0,0.00017534,2]
[329300724,1718225445450,-845.76,0.00017534,2]
[329300725,1718225445460,-500.0,0.00017534,2]
[329300726,1718225445471,-549.6,0.00017534,2]
[329300727,1718225445482,-88888.0,0.00017608,2]
[329300728,1718225445492,-91891.13818782,0.00017708,2]
[329300729,1718225445511,-43640.05510919,0.00017708,2]
[329300730,1718225445524,-5276.85436371,0.00017708,2]
[329300731,1718225445537,-1961.34902604,0.00017708,2]
[329300732,1718225445570,-37736.61012092,0.00017708,2]
[329300733,1718225445583,-2145.71675816,0.00017708,2]
[329300734,1718225445595,-53879.98641907,0.00017708,2]
[329300735,1718225446365,-500.0,0.00016438,2]
[329300736,1718225446375,-500.0,0.00016438,2]
[329300737,1718225446390,-500.0,0.00016438,2]
[329300738,1718225446400,-500.0,0.00016712,2]
[329300739,1718225446412,-500.0,0.00016712,2]
[329300740,1718225446424,-500.0,0.00016986,2]
[329300741,1718225446435,-500.0,0.00016986,2]
[329300742,1718225446446,-500.0,0.0001726,2]
[329300743,1718225446456,-165.17,0.0001726,2]
[329300744,1718225446467,-500.0,0.00017534,2]
[329300745,1718225446477,-5475.02862978,0.00017708,2]
[329300746,1718225446491,-47377.26138531,0.00017708,2]
[329300747,1718225446502,-300.521695,0.00017725,2]
[329300748,1718225446513,-292.5693121,0.00017725,2]
[329300749,1718225446523,-292.5693121,0.00017725,2]
[329300750,1718225446535,-292.5693121,0.00017725,2]
[329300751,1718225446545,-1995.59270983,0.00017807,2]
[329300752,1718225446556,-500.0,0.00017808,2]
[329300753,1718225446566,-500.0,0.00017808,2]
[329300754,1718225446577,-500.0,0.00017808,2]
[329300755,1718225446588,-561.53,0.00017808,2]
[329300756,1718225446600,-707.68,0.00017808,2]
[329300758,1718225446611,-545.24,0.00017808,2]
[329300761,1718225446622,-500.0,0.00017808,2]
[329300763,1718225446635,-735.34,0.00017808,2]
[329300765,1718225446645,-500.0,0.00017808,2]
[329300768,1718225446655,-505.01,0.00017808,2]
[329300771,1718225446666,-500.0,0.00017808,2]
[329300773,1718225446689,-510.38,0.00017808,2]
[329300775,1718225446700,-763.47,0.00017808,2]
[329300777,1718225446711,-500.0,0.00017808,2]
[329300779,1718225446722,-500.0,0.00017808,2]
[329300781,1718225446733,-500.0,0.00017808,2]
[329300783,1718225446744,-5885.54,0.00017808,2]
[329300785,1718225446756,-500.0,0.00017808,2]
[329300787,1718225446769,-3599.52,0.00017808,2]
[329300789,1718225446782,-531.35,0.00017808,2]
[329300791,1718225446792,-1362.99,0.00017808,2]
[329300793,1718225446804,-1825.72,0.00017808,2]
[329300795,1718225446815,-500.0,0.00017808,2]
[329300797,1718225446826,-635.02,0.00017808,2]
[329300800,1718225446836,-500.0,0.00017808,2]
[329300803,1718225446848,-4032.34,0.00017808,2]
[329300806,1718225446860,-500.0,0.00017808,2]
[329300807,1718225446871,-500.0,0.00017808,2]
[329300809,1718225446881,-572.08,0.00017808,2]
[329300811,1718225446894,-500.0,0.00017808,2]
[329300812,1718225446905,-793.22,0.00017808,2]
[329300813,1718225446915,-500.0,0.00017808,2]
[329300814,1718225446925,-592.49,0.00017808,2]
[329300815,1718225446935,-1316.11,0.00017808,2]
[329300816,1718225446950,-607.46,0.00017808,2]
[329300817,1718225446962,-500.0,0.00017808,2]
[329300818,1718225446972,-1093.22,0.00017808,2]
[329300819,1718225446984,-2770.43,0.00017808,2]
[329300820,1718225446996,-500.0,0.00017808,2]
[329300821,1718225447008,-845.76,0.00017808,2]
[329300822,1718225447019,-500.0,0.00017808,2]
[329300823,1718225447030,-549.6,0.00017808,2]
[329300824,1718225447041,-500.0,0.00017808,2]
[329300825,1718225447052,-151.0,0.00017862,2]
[329300826,1718225447062,-185.85022718,0.000179,2]
[329300827,1718225447074,-420.0,0.0001797,2]
[329300828,1718225447085,-1355.61945113,0.00018,2]
[329300829,1718225447095,-61219.30517135,0.00018,2]
[329300830,1718225447106,-2765.44251206,0.00018,2]
[329300831,1718225447117,-466.16658975,0.00018,2]
[329300832,1718225447130,-10.53304679,0.00018,2]
[329300833,1718225447143,-672.11189315,0.00018,2]
[329300839,1718225448021,-548.81660986,0.00016438,2]
[329300840,1718225448045,-292.5693121,0.00017725,2]
[329300841,1718225448055,-204.7166074,0.00018,2]
[329300842,1718225448066,-31.27355107,0.00018076,2]
[329300843,1718225448079,-119.72644893,0.00018076,2]
[329300844,1718225448089,-500.0,0.00018082,2]
[329300845,1718225448100,-500.0,0.00018082,2]
[329300846,1718225448110,-500.0,0.00018082,2]
[329300847,1718225448120,-561.53,0.00018082,2]
[329300848,1718225448132,-243.05234357,0.00018082,2]
[329300855,1718225451896,-500.0,0.00016438,2]
[329300856,1718225451907,-464.62765643,0.00018082,2]
[329300857,1718225451918,-545.24,0.00018082,2]
[329300858,1718225451930,-500.0,0.00018082,2]
[329300859,1718225451942,-735.34,0.00018082,2]
[329300860,1718225451955,-505.01,0.00018082,2]
[329300861,1718225451966,-500.0,0.00018082,2]
[329300862,1718225451977,-510.38,0.00018082,2]
[329300863,1718225451988,-763.47,0.00018082,2]
[329300864,1718225451998,-500.0,0.00018082,2]
[329300865,1718225452009,-500.0,0.00018082,2]
[329300866,1718225452018,-151.0,0.00018082,2]
[329300867,1718225452028,-500.0,0.00018082,2]
[329300868,1718225452037,-5885.54,0.00018082,2]
[329300869,1718225452047,-151.0,0.00018082,2]
[329300870,1718225452056,-151.0,0.00018082,2]
[329300871,1718225452066,-500.0,0.00018082,2]
[329300872,1718225452076,-151.0,0.00018082,2]
[329300873,1718225452085,-151.0,0.00018082,2]
[329300874,1718225452095,-151.0,0.00018082,2]
[329300875,1718225452105,-1427.96945978,0.00018082,2]
[329300878,1718225529285,150.98490151,0.00020245,30]
[329300879,1718225529355,150.98490151,0.0001984,120]
[329300880,1718225605672,126163.0,0.00025,60]
[329300881,1718226032088,331.80014807,9.999e-05,2]
[329300882,1718226032154,260.02106193,9.999e-05,2]
[329300883,1718226032211,183.05909963,9.999e-05,2]
[329300884,1718226034416,150.98490151,0.00020117,30]
[329300885,1718226034503,150.98490151,0.00019714,120]
[329300886,1718226282894,150.98490151,0.00020298,30]
[329300887,1718226282948,150.98490151,0.00019892,120]
[329300889,1718226541180,-347.29775427,0.00015017,2]
[329300890,1718226566152,-354.24370935,0.00015017,2]
[329300891,1718226566329,-190.99175317,0.00015017,2]
[329300892,1718226591134,-350.6344179,0.00015017,2]
[329300899,1718226635271,-335.93872547,0.00015017,2]
[329300900,1718226635289,-1420.89363984,0.00015017,2]
[329300901,1718226635302,-300.0,0.00015086,2]
[329300902,1718226635328,-20710.153156,0.00015087,2]
[329300903,1718226635349,-773.57337636,0.00015435,2]
[329300904,1718226635364,-185.85022718,0.00016338,2]
[329300905,1718226635375,-977.54146921,0.00016338,2]